fUSD/lending_fUSD_20250414
["ID","MTS","AMOUNT","RATE_DAILY","PERIOD"]
[357940561,1744605043862,-509.2321897,0.00019178,2]
[357940563,1744605043871,-513.83854069,0.00019178,2]
[357940565,1744605043880,-500.0,0.00019178,2]
[357940567,1744605043890,-512.14383924,0.00019178,2]
[357940569,1744605043899,-524.85605284,0.00019178,2]
[357940571,1744605043908,-500.0,0.00019178,2]
[357940573,1744605043917,-500.0,0.00019178,2]
[357940575,1744605043926,-523.22012514,0.00019178,2]
[357940577,1744605043939,-527.29652501,0.00019178,2]
[357940578,1744605043948,-500.0,0.00019178,2]
[357940579,1744605043958,-500.0,0.00019178,2]
[357940580,1744605043967,-516.5271279,0.00019178,2]
[357940581,1744605043977,-509.35073086,0.00019178,2]
[357940582,1744605043986,-500.0,0.00019178,2]
[357940583,1744605043995,-505.88128102,0.00019178,2]
[357940584,1744605044005,-500.0,0.00019178,2]
[357940585,1744605044014,-514.39416552,0.00019178,2]
[357940586,1744605044024,-500.0,0.00019178,2]
[357940588,1744605044033,-502.91797523,0.00019178,2]
[357940590,1744605044043,-523.51512915,0.00019178,2]
[357940592,1744605044053,-500.0,0.00019178,2]
[357940594,1744605044064,-500.0,0.00019178,2]
[357940596,1744605044073,-500.0,0.00019178,2]
[357940598,1744605044082,-7435.54,0.00019178,2]
[357940599,1744605044092,-500.0,0.00019178,2]
[357940602,1744605044102,-500.0,0.00019178,2]
[357940604,1744605044112,-512.50121442,0.00019178,2]
[357940606,1744605044122,-844.79,0.00019178,2]
[357940607,1744605044131,-517.0519103,0.00019178,2]
[357940609,1744605044140,-500.0,0.00019178,2]
[357940611,1744605044149,-500.0,0.00019178,2]
[357940613,1744605044158,-176.56,0.00019178,2]
[357940615,1744605044167,-555.4,0.00019178,2]
[357940617,1744605044176,-516.86040785,0.00019178,2]
[357940619,1744605044186,-501.10627065,0.00019178,2]
[357940621,1744605044196,-500.0,0.00019178,2]
[357940623,1744605044205,-500.0,0.00019178,2]
[357940625,1744605044215,-500.0,0.00019178,2]
[357940627,1744605044224,-500.0,0.00019178,2]
[357940629,1744605044234,-500.0,0.00019178,2]
[357940631,1744605044243,-500.0,0.00019178,2]
[357940633,1744605044253,-500.0,0.00019178,2]
[357940635,1744605044262,-500.0,0.00019178,2]
[357940637,1744605044271,-592.02695205,0.00019178,2]
[357940639,1744605044281,-500.0,0.00019178,2]
[357940641,1744605044295,-515.98720866,0.00019178,2]
[357940643,1744605044304,-520.44644082,0.00019178,2]
[357940645,1744605044314,-515.65030817,0.00019178,2]
[357940647,1744605044323,-525.96964503,0.00019178,2]
[357940649,1744605044335,-213.58614922,0.00019178,2]
[357940651,1744605044344,-500.0,0.00019178,2]
[357940653,1744605044353,-570.55,0.00019178,2]
[357940655,1744605044364,-500.0,0.00019178,2]
[357940657,1744605044374,-500.0,0.00019178,2]
[357940659,1744605044383,-500.0,0.00019178,2]
[357940661,1744605044393,-500.0,0.00019178,2]
[357940663,1744605044403,-500.0,0.00019178,2]
[357940665,1744605044412,-500.0,0.00019178,2]
[357940667,1744605044421,-500.0,0.00019178,2]
[357940669,1744605044431,-500.0,0.00019178,2]
[357940671,1744605044440,-504.12333985,0.00019178,2]
[357940672,1744605044450,-500.0,0.00019178,2]
[357940673,1744605044460,-504.92176732,0.00019178,2]
[357940674,1744605044469,-524.61717776,0.00019178,2]
[357940675,1744605044479,-2000.0,0.00019178,2]
[357940676,1744605044489,-500.0,0.00019178,2]
[357940677,1744605044499,-500.0,0.00019178,2]
[357940678,1744605044509,-500.0,0.00019178,2]
[357940679,1744605044518,-523.1149443,0.00019178,2]
[357940680,1744605044528,-150.0,0.00019178,2]
[357940681,1744605044537,-500.0,0.00019178,2]
[357940682,1744605044547,-500.0,0.00019178,2]
[357940683,1744605044556,-193.15042063,0.00019178,2]
[357940684,1744605044567,-500.0,0.00019178,2]
[357940685,1744605044576,-500.0,0.00019178,2]
[357940686,1744605044585,-500.0,0.00019178,2]
[357940687,1744605044596,-500.0,0.00019178,2]
[357940688,1744605044605,-500.0,0.00019178,2]
[357940689,1744605044614,-339.69,0.00019178,2]
[357940690,1744605044623,-500.0,0.00019178,2]
[357940691,1744605044633,-500.0,0.00019178,2]
[357940692,1744605044643,-518.02967749,0.00019178,2]
[357940693,1744605044652,-500.0,0.00019178,2]
[357940694,1744605044661,-500.0,0.00019178,2]
[357940695,1744605044671,-500.0,0.00019178,2]
[357940696,1744605044681,-500.0,0.00019178,2]
[357940697,1744605044691,-500.0,0.00019178,2]
[357940698,1744605044701,-195.87664267,0.00019178,2]
[357940699,1744605044711,-500.0,0.00019178,2]
[357940700,1744605044721,-500.0,0.00019178,2]
[357940701,1744605044731,-500.0,0.00019178,2]
[357940702,1744605044740,-500.0,0.00019178,2]
[357940703,1744605044750,-500.0,0.00019178,2]
[357940704,1744605044760,-500.0,0.00019178,2]
[357940705,1744605044770,-500.0,0.00019178,2]
[357940707,1744605044780,-500.0,0.00019178,2]
[357940709,1744605044789,-509.8305648,0.00019178,2]
[357940711,1744605044799,-500.0,0.00019178,2]
[357940713,1744605044808,-500.0,0.00019178,2]
[357940714,1744605044818,-500.0,0.00019178,2]
[357940715,1744605044827,-500.0,0.00019178,2]
[357940716,1744605044837,-501.46203465,0.00019178,2]
[357940717,1744605044847,-500.0,0.00019178,2]
[357940718,1744605044857,-500.0,0.00019178,2]
[357940719,1744605044866,-500.0,0.00019178,2]
[357940720,1744605044875,-500.0,0.00019178,2]
[357940721,1744605044885,-518.18,0.00019178,2]
[357940722,1744605044896,-390.47128146,0.00019178,2]
[357940723,1744605044905,-755.42,0.00019178,2]
[357940724,1744605044915,-208.53422095,0.00019178,2]
[357940725,1744605044925,-500.0,0.00019178,2]
[357940726,1744605044935,-500.0,0.00019178,2]
[357940727,1744605044945,-578.98,0.00019178,2]
[357940728,1744605044955,-186.65737806,0.00019178,2]
[357940729,1744605044964,-634.34,0.00019178,2]
[357940730,1744605044974,-506.15435221,0.00019178,2]
[357940731,1744605044985,-500.0,0.00019178,2]
[357940732,1744605044995,-222.46752932,0.00019178,2]
[357940733,1744605045004,-509.93216789,0.00019178,2]
[357940734,1744605045014,-573.26570796,0.00019178,2]
[357940735,1744605045024,-500.0,0.00019178,2]
[357940736,1744605045033,-500.0,0.00019178,2]
[357940737,1744605045043,-500.0,0.00019178,2]
[357940738,1744605045053,-500.0,0.00019178,2]
[357940739,1744605045062,-500.0,0.00019178,2]
[357940740,1744605045072,-355.5829134,0.00019178,2]
[357940741,1744605045083,-500.0,0.00019178,2]
[357940742,1744605045093,-500.0,0.00019178,2]
[357940743,1744605045103,-500.0,0.00019178,2]
[357940744,1744605045113,-500.0,0.00019178,2]
[357940745,1744605045123,-500.0,0.00019178,2]
[357940746,1744605045133,-500.0,0.00019178,2]
[357940747,1744605045143,-500.0,0.00019178,2]
[357940748,1744605045153,-550.94657796,0.00019178,2]
[357940749,1744605045163,-500.0,0.00019178,2]
[357940750,1744605045173,-500.0,0.00019178,2]
[357940751,1744605045183,-500.0,0.00019178,2]
[357940752,1744605045194,-500.0,0.00019178,2]
[357940753,1744605045203,-500.0,0.00019178,2]
[357940754,1744605045213,-500.0,0.00019178,2]
[357940755,1744605045223,-500.0,0.00019178,2]
[357940756,1744605045234,-388.53496153,0.00019178,2]
[357940757,1744605045244,-500.0,0.00019178,2]
[357940758,1744605045253,-162.84275734,0.00019178,2]
[357940759,1744605045263,-500.0,0.00019178,2]
[357940760,1744605045273,-500.0,0.00019178,2]
[357940761,1744605045283,-500.0,0.00019178,2]
[357940762,1744605045297,-500.0,0.00019178,2]
[357940763,1744605045307,-500.0,0.00019178,2]
[357940764,1744605045317,-151.0,0.00019178,2]
[357940765,1744605045327,-614.6448582,0.00019178,2]
[357940766,1744605045338,-617.72198286,0.00019178,2]
[357940767,1744605045347,-500.0,0.00019178,2]
[357940768,1744605045357,-500.0,0.00019178,2]
[357940769,1744605045368,-504.37614357,0.00019178,2]
[357940770,1744605045378,-504.58652844,0.00019178,2]
[357940771,1744605045388,-500.0,0.00019178,2]
[357940772,1744605045398,-500.0,0.00019178,2]
[357940773,1744605045408,-500.5717482,0.00019178,2]
[357940774,1744605045417,-500.0,0.00019178,2]
[357940775,1744605045427,-500.0,0.00019178,2]
[357940776,1744605045443,-440.40168611,0.00019178,2]
[357940777,1744605045461,-500.0,0.00019178,2]
[357940778,1744605045473,-403.85898097,0.00019178,2]
[357940779,1744605045485,-500.0,0.00019178,2]
[357940780,1744605045495,-500.0,0.00019178,2]
[357940781,1744605045505,-588.21515634,0.00019178,2]
[357940782,1744605045517,-503.45313047,0.00019178,2]
[357940783,1744605045527,-520.31569667,0.00019178,2]
[357940784,1744605045538,-182.57510806,0.00019178,2]
[357940785,1744605045549,-541.58,0.00019178,2]
[357940786,1744605045558,-500.0,0.00019178,2]
[357940787,1744605045568,-500.0,0.00019178,2]
[357940788,1744605045578,-500.0,0.00019178,2]
[357940789,1744605045588,-505.95509663,0.00019178,2]
[357940790,1744605045639,-500.0,0.00019178,2]
[357940791,1744605045648,-563.79102256,0.00019178,2]
[357940792,1744605045657,-500.0,0.00019178,2]
[357940793,1744605045667,-506.05094994,0.00019178,2]
[357940794,1744605045676,-507.21326733,0.00019178,2]
[357940795,1744605045686,-500.0,0.00019178,2]
[357940796,1744605045695,-508.67357697,0.00019178,2]
[357940797,1744605045704,-500.0,0.00019178,2]
[357940798,1744605045714,-500.0,0.00019178,2]
[357940799,1744605045723,-521.44708102,0.00019178,2]
[357940800,1744605045733,-515.22611937,0.00019178,2]
[357940801,1744605045743,-556.86580853,0.00019178,2]
[357940802,1744605045752,-500.0,0.00019178,2]
[357940803,1744605045762,-500.0,0.00019178,2]
[357940804,1744605045772,-500.0,0.00019178,2]
[357940805,1744605045781,-559.98705869,0.00019178,2]
[357940806,1744605045791,-500.0,0.00019178,2]
[357940807,1744605045800,-521.49458855,0.00019178,2]
[357940808,1744605045810,-500.0,0.00019178,2]
[357940809,1744605045819,-500.0,0.00019178,2]
[357940810,1744605045828,-1000.0,0.00019178,2]
[357940811,1744605045837,-535.04917166,0.00019178,2]
[357940812,1744605045847,-551.95920508,0.00019178,2]
[357940813,1744605045857,-500.0,0.00019178,2]
[357940814,1744605045867,-500.0,0.00019178,2]
[357940815,1744605045876,-500.0,0.00019178,2]
[357940816,1744605045886,-500.0,0.00019178,2]
[357940817,1744605045895,-500.0,0.00019178,2]
[357940818,1744605045904,-509.83526668,0.00019178,2]
[357940819,1744605045914,-500.0,0.00019178,2]
[357940820,1744605045923,-500.0,0.00019178,2]
[357940821,1744605045933,-633.52245034,0.00019178,2]
[357940822,1744605045942,-518.64,0.00019178,2]
[357940823,1744605045952,-500.0,0.00019178,2]
[357940824,1744605045961,-621.66167311,0.00019178,2]
[357940825,1744605045971,-500.0,0.00019178,2]
[357940826,1744605045982,-221.96901316,0.00019178,2]
[357940827,1744605045991,-197.98915546,0.00019178,2]
[357940828,1744605046001,-500.0,0.00019233,2]
[357940829,1744605046011,-273.18835129,0.00019233,2]
[357940830,1744605046020,-500.0,0.00019288,2]
[357940831,1744605046030,-500.0,0.00019342,2]
[357940832,1744605046039,-500.0,0.00019397,2]
[357940834,1744605046048,-315.7469143,0.00019399,2]
[357940835,1744605046058,-663.00851678,0.000194,2]
[357940836,1744605046067,-389.33311822,0.0001944,2]
[357940837,1744605046076,-416.00464962,0.00019452,2]
[357940838,1744605046087,-500.0,0.00019452,2]
[357940839,1744605046096,-542.24728583,0.00019452,2]
[357940840,1744605046106,-500.0,0.00019452,2]
[357940841,1744605046115,-500.0,0.00019452,2]
[357940842,1744605046124,-500.0,0.00019452,2]
[357940843,1744605046135,-500.0,0.00019452,2]
[357940844,1744605046144,-517.15481435,0.00019452,2]
[357940845,1744605046153,-500.0,0.00019452,2]
[357940846,1744605046162,-500.0,0.00019452,2]
[357940847,1744605046172,-500.0,0.00019452,2]
[357940848,1744605046182,-500.0,0.00019452,2]
[357940849,1744605046192,-500.0,0.00019452,2]
[357940850,1744605046202,-605.35379084,0.00019452,2]
[357940851,1744605046212,-551.18556186,0.00019452,2]
[357940852,1744605046221,-500.0,0.00019452,2]
[357940853,1744605046231,-500.0,0.00019452,2]
[357940854,1744605046240,-517.87552094,0.00019452,2]
[357940855,1744605046250,-500.0,0.00019452,2]
[357940856,1744605046260,-500.0,0.00019452,2]
[357940857,1744605046270,-156.51134775,0.00019452,2]
[357940858,1744605046280,-500.0,0.00019452,2]
[357940859,1744605046291,-500.0,0.00019452,2]
[357940860,1744605046303,-500.0,0.00019452,2]
[357940861,1744605046312,-500.0,0.00019452,2]
[357940862,1744605046322,-500.0,0.00019452,2]
[357940863,1744605046331,-500.0,0.00019452,2]
[357940864,1744605046341,-500.0,0.00019452,2]
[357940865,1744605046351,-550.97150598,0.00019452,2]
[357940866,1744605046360,-500.0,0.00019452,2]
[357940867,1744605046371,-500.0,0.00019452,2]
[357940868,1744605046380,-500.0,0.00019452,2]
[357940869,1744605046390,-500.0,0.00019452,2]
[357940870,1744605046399,-500.0,0.00019452,2]
[357940871,1744605046409,-500.0,0.00019452,2]
[357940872,1744605046418,-315.98682398,0.00019452,2]
[357940873,1744605046428,-500.0,0.00019452,2]
[357940874,1744605046438,-574.5457391,0.00019452,2]
[357940875,1744605046447,-531.63777853,0.00019452,2]
[357940876,1744605046457,-500.0,0.00019452,2]
[357940877,1744605046466,-500.0,0.00019452,2]
[357940878,1744605046477,-500.0,0.00019452,2]
[357940879,1744605046487,-249.94959971,0.00019452,2]
[357940880,1744605046497,-500.0,0.00019452,2]
[357940881,1744605046507,-500.0,0.00019452,2]
[357940882,1744605046515,-223.93035433,0.00019452,2]
[357940883,1744605046524,-500.0,0.00019452,2]
[357940884,1744605046534,-351.85956989,0.00019452,2]
[357940885,1744605046544,-500.0,0.00019452,2]
[357940886,1744605046554,-500.0,0.00019452,2]
[357940887,1744605046564,-629.84,0.00019452,2]
[357940888,1744605046573,-500.0,0.00019452,2]
[357940889,1744605046583,-500.0,0.00019452,2]
[357940890,1744605046592,-500.0,0.00019452,2]
[357940891,1744605046601,-187.71763451,0.00019452,2]
[357940892,1744605046610,-994.27,0.00019452,2]
[357940893,1744605046620,-500.0,0.00019452,2]
[357940894,1744605046630,-525.34606674,0.00019452,2]
[357940895,1744605046639,-340.88770081,0.00019452,2]
[357940896,1744605046652,-252.45394082,0.00019452,2]
[357940897,1744605046661,-500.0,0.00019452,2]
[357940899,1744605046671,-500.0,0.00019452,2]
[357940901,1744605046681,-500.0,0.00019452,2]
[357940903,1744605046691,-151.60778395,0.00019452,2]
[357940905,1744605046700,-500.0,0.00019452,2]
[357940907,1744605046709,-364.66253916,0.00019452,2]
[357940909,1744605046719,-618.44667889,0.00019452,2]
[357940910,1744605046730,-7435.54,0.00019452,2]
[357940912,1744605046739,-500.0,0.00019452,2]
[357940913,1744605046749,-844.79,0.00019452,2]
[357940914,1744605046759,-536.01507649,0.00019452,2]
[357940915,1744605046769,-555.4,0.00019452,2]
[357940916,1744605046778,-500.0,0.00019452,2]
[357940917,1744605046788,-500.0,0.00019452,2]
[357940918,1744605046798,-500.0,0.00019452,2]
[357940919,1744605046808,-328.71262192,0.00019452,2]
[357940920,1744605046818,-500.0,0.00019452,2]
[357940921,1744605046828,-163.44197422,0.00019452,2]
[357940922,1744605046838,-500.0,0.00019452,2]
[357940923,1744605046848,-278.05925039,0.00019452,2]
[357940924,1744605046858,-500.0,0.00019452,2]
[357940925,1744605046868,-363.85627383,0.00019452,2]
[357940926,1744605046878,-422.15943764,0.00019452,2]
[357940927,1744605046887,-500.0,0.00019452,2]
[357940928,1744605046897,-500.0,0.00019452,2]
[357940929,1744605046907,-500.0,0.00019452,2]
[357940930,1744605046916,-202.58136482,0.00019452,2]
[357940931,1744605046928,-500.0,0.00019452,2]
[357940932,1744605046937,-500.0,0.00019452,2]
[357940933,1744605046947,-628.53876401,0.00019452,2]
[357940934,1744605046957,-349.77,0.00019452,2]
[357940935,1744605046966,-500.0,0.00019452,2]
[357940936,1744605046976,-500.0,0.00019452,2]
[357940937,1744605046986,-500.0,0.00019452,2]
[357940938,1744605046995,-500.0,0.00019452,2]
[357940939,1744605047004,-500.0,0.00019452,2]
[357940940,1744605047013,-500.0,0.00019452,2]
[357940941,1744605047023,-500.0,0.00019452,2]
[357940942,1744605047032,-507.09781207,0.00019452,2]
[357940943,1744605047042,-514.07,0.00019452,2]
[357940944,1744605047051,-755.42,0.00019452,2]
[357940945,1744605047062,-500.0,0.00019452,2]
[357940946,1744605047071,-500.0,0.00019452,2]
[357940947,1744605047081,-500.0,0.00019452,2]
[357940948,1744605047090,-521.24087855,0.00019452,2]
[357940949,1744605047100,-474.15815719,0.00019452,2]
[357940950,1744605047110,-500.0,0.00019452,2]
[357940951,1744605047119,-500.0,0.00019452,2]
[357940952,1744605047129,-500.0,0.00019452,2]
[357940953,1744605047138,-500.0,0.00019452,2]
[357940954,1744605047148,-255.39,0.00019452,2]
[357940955,1744605047158,-500.0,0.00019452,2]
[357940956,1744605047167,-500.0,0.00019452,2]
[357940957,1744605047177,-326.4400145,0.00019452,2]
[357940958,1744605047186,-567.18765879,0.00019452,2]
[357940959,1744605047195,-500.0,0.00019452,2]
[357940960,1744605047204,-500.0,0.00019452,2]
[357940961,1744605047214,-205.91712062,0.00019452,2]
[357940962,1744605047225,-612.18869149,0.00019452,2]
[357940963,1744605047235,-605.84,0.00019452,2]
[357940964,1744605047244,-500.0,0.00019452,2]
[357940965,1744605047254,-500.0,0.00019452,2]
[357940966,1744605047265,-500.0,0.00019452,2]
[357940967,1744605047274,-500.0,0.00019452,2]
[357940968,1744605047284,-573.21021521,0.00019452,2]
[357940969,1744605047297,-500.0,0.00019452,2]
[357940970,1744605047307,-151.0,0.00019452,2]
[357940971,1744605047316,-500.0,0.00019452,2]
[357940972,1744605047326,-505.07611106,0.00019452,2]
[357940973,1744605047336,-500.0,0.00019452,2]
[357940974,1744605047346,-500.0,0.00019452,2]
[357940975,1744605047356,-501.89642457,0.00019452,2]
[357940976,1744605047366,-500.0,0.00019452,2]
[357940977,1744605047376,-500.0,0.00019452,2]
[357940978,1744605047386,-500.0,0.00019452,2]
[357940979,1744605047395,-541.58,0.00019452,2]
[357940980,1744605047405,-177.94958251,0.00019452,2]
[357940981,1744605047415,-500.0,0.00019452,2]
[357940982,1744605047425,-500.0,0.00019452,2]
[357940983,1744605047435,-288.7286956,0.00019452,2]
[357940984,1744605047445,-506.81160882,0.00019452,2]
[357940985,1744605047455,-500.0,0.00019452,2]
[357940986,1744605047465,-597.9328826,0.00019452,2]
[357940987,1744605047475,-500.0,0.00019452,2]
[357940988,1744605047487,-537.97259665,0.00019452,2]
[357940989,1744605047497,-500.0,0.00019452,2]
[357940990,1744605047507,-1000.0,0.00019452,2]
[357940991,1744605047517,-539.59684737,0.00019452,2]
[357940992,1744605047526,-500.0,0.00019452,2]
[357940993,1744605047536,-172.85982799,0.00019452,2]
[357940994,1744605047546,-406.56126841,0.00019452,2]
[357940995,1744605047556,-500.0,0.00019452,2]
[357940996,1744605047566,-500.0,0.00019452,2]
[357940997,1744605047576,-389.33311822,0.00019479,2]
[357940998,1744605047586,-565.8645223,0.00019489,2]
[357940999,1744605047596,-566.04,0.000195,2]
[357941000,1744605047606,-300.0,0.0001951,2]
[357941001,1744605047616,-1114.37561308,0.000196,2]
[357941002,1744605047626,-5695.00146306,0.000196,2]
[357941003,1744605047636,-1068.0,0.00019606,2]
[357941004,1744605047646,-1750.7462,0.00019626,2]
[357941005,1744605047656,-29359.13261585,0.0001969,2]
[357941006,1744605047665,-34169.82,0.000197,2]
[357941007,1744605047675,-301.69882718,0.000197,2]
[357941008,1744605047686,-29359.13261585,0.00019703,2]
[357941009,1744605047696,-500.0,0.00019714,2]
[357941010,1744605047706,-58718.26523162,0.00019715,2]
[357941011,1744605047716,-58718.26523162,0.00019726,2]
[357941012,1744605047726,-500.0,0.00019726,2]
[357941013,1744605047736,-500.17215787,0.00019726,2]
[357941014,1744605047746,-389.91807129,0.00019726,2]
[357941015,1744605047755,-500.0,0.00019726,2]
[357941016,1744605047765,-500.0,0.00019726,2]
[357941017,1744605047775,-500.0,0.00019726,2]
[357941018,1744605047784,-526.34927083,0.00019726,2]
[357941019,1744605047794,-298.26830961,0.00019726,2]
[357941020,1744605047804,-500.0,0.00019726,2]
[357941021,1744605047814,-500.0,0.00019726,2]
[357941022,1744605047824,-500.0,0.00019726,2]
[357941023,1744605047834,-552.34,0.00019726,2]
[357941024,1744605047844,-373.47178315,0.00019726,2]
[357941025,1744605047854,-500.0,0.00019726,2]
[357941026,1744605047863,-500.0,0.00019726,2]
[357941027,1744605047872,-225.94710512,0.00019726,2]
[357941028,1744605047881,-500.0,0.00019726,2]
[357941029,1744605047891,-517.48353604,0.00019726,2]
[357941030,1744605047900,-214.21038836,0.00019726,2]
[357941031,1744605047911,-358.55,0.00019726,2]
[357941032,1744605047921,-280.32163382,0.00019726,2]
[357941033,1744605047931,-500.0,0.00019726,2]
[357941034,1744605047940,-293.87825309,0.00019726,2]
[357941035,1744605047950,-439.61,0.00019726,2]
[357941036,1744605047960,-314.78781203,0.00019726,2]
[357941037,1744605047970,-500.0,0.00019726,2]
[357941038,1744605047980,-500.0,0.00019726,2]
[357941039,1744605047990,-175.3,0.00019726,2]
[357941040,1744605048000,-629.84,0.00019726,2]
[357941041,1744605048010,-254.19824912,0.00019726,2]
[357941042,1744605048020,-500.0,0.00019726,2]
[357941043,1744605048030,-514.70733894,0.00019726,2]
[357941044,1744605048040,-994.27,0.00019726,2]
[357941045,1744605048051,-500.0,0.00019726,2]
[357941046,1744605048061,-500.0,0.00019726,2]
[357941047,1744605048071,-178.15928851,0.00019726,2]
[357941048,1744605048082,-613.49476184,0.00019726,2]
[357941049,1744605048092,-500.0,0.00019726,2]
[357941050,1744605048102,-7435.54,0.00019726,2]
[357941051,1744605048112,-233.33927667,0.00019726,2]
[357941052,1744605048122,-844.79,0.00019726,2]
[357941053,1744605048132,-555.4,0.00019726,2]
[357941054,1744605048142,-500.0,0.00019726,2]
[357941055,1744605048152,-500.0,0.00019726,2]
[357941056,1744605048162,-500.0,0.00019726,2]
[357941057,1744605048172,-500.0,0.00019726,2]
[357941058,1744605048183,-500.0,0.00019726,2]
[357941059,1744605048192,-500.0,0.00019726,2]
[357941060,1744605048203,-500.0,0.00019726,2]
[357941061,1744605048212,-500.0,0.00019726,2]
[357941062,1744605048222,-500.0,0.00019726,2]
[357941063,1744605048232,-569.22868221,0.00019726,2]
[357941064,1744605048243,-325.95,0.00019726,2]
[357941065,1744605048254,-500.0,0.00019726,2]
[357941066,1744605048264,-500.0,0.00019726,2]
[357941067,1744605048274,-500.0,0.00019726,2]
[357941068,1744605048285,-500.0,0.00019726,2]
[357941069,1744605048300,-500.0,0.00019726,2]
[357941070,1744605048310,-500.0,0.00019726,2]
[357941071,1744605048320,-755.42,0.00019726,2]
[357941072,1744605048331,-500.0,0.00019726,2]
[357941073,1744605048343,-500.0,0.00019726,2]
[357941074,1744605048353,-500.0,0.00019726,2]
[357941075,1744605048363,-500.0,0.00019726,2]
[357941076,1744605048375,-500.0,0.00019726,2]
[357941077,1744605048386,-500.0,0.00019726,2]
[357941078,1744605048396,-394.52197563,0.00019726,2]
[357941079,1744605048406,-500.0,0.00019726,2]
[357941080,1744605048416,-442.21008805,0.00019726,2]
[357941081,1744605048426,-500.0,0.00019726,2]
[357941082,1744605048436,-344.33932988,0.00019726,2]
[357941083,1744605048447,-500.0,0.00019726,2]
[357941084,1744605048457,-500.0,0.00019726,2]
[357941085,1744605048467,-500.0,0.00019726,2]
[357941086,1744605048476,-500.0,0.00019726,2]
[357941087,1744605048487,-500.0,0.00019726,2]
[357941088,1744605048497,-154.30620524,0.00019726,2]
[357941089,1744605048507,-364.21581263,0.00019726,2]
[357941090,1744605048517,-500.0,0.00019726,2]
[357941091,1744605048527,-500.0,0.00019726,2]
[357941092,1744605048537,-499.06606387,0.00019726,2]
[357941093,1744605048548,-500.0,0.00019726,2]
[357941094,1744605048558,-500.0,0.00019726,2]
[357941095,1744605048568,-541.58,0.00019726,2]
[357941096,1744605048578,-520.95357615,0.00019726,2]
[357941097,1744605048588,-500.0,0.00019726,2]
[357941098,1744605048599,-500.0,0.00019726,2]
[357941099,1744605048608,-533.91970149,0.00019726,2]
[357941100,1744605048619,-500.0,0.00019726,2]
[357941101,1744605048629,-1136.05129862,0.00019726,2]
[357941102,1744605048639,-536.35015639,0.00019726,2]
[357941103,1744605048648,-238.18,0.00019726,2]
[357941104,1744605048658,-615.56209662,0.00019726,2]
[357941105,1744605048668,-29359.13261585,0.0001973,2]
[357941106,1744605048677,-58718.26523162,0.00019739,2]
[357941107,1744605048687,-597.999,0.0001975,2]
[357941108,1744605048696,-506.65560048,0.00019773,2]
[357941109,1744605048707,-509.08900326,0.00019773,2]
[357941110,1744605048717,-500.0,0.00019773,2]
[357941111,1744605048727,-389.33311826,0.00019787,2]
[357941112,1744605048738,-421.7916,0.000198,2]
[357941113,1744605048748,-165.73,0.00019852,2]
[357941114,1744605048758,-500.0,0.00019863,2]
[357941115,1744605048768,-500.0,0.00019863,2]
[357941116,1744605048778,-500.0,0.00019863,2]
[357941117,1744605048788,-500.0,0.00019863,2]
[357941118,1744605048798,-500.0,0.00019863,2]
[357941119,1744605048807,-500.0,0.00019863,2]
[357941120,1744605048817,-500.0,0.00019863,2]
[357941121,1744605048827,-500.0,0.00019863,2]
[357941122,1744605048837,-500.0,0.00019863,2]